[Event "TOP 16 - Final A"]
[Site "TOP16-Final-A"]
[Date "2021.01.17"]
[Round "10"]
[White "Tander"]
[Black "Harut-1998"]
[Result "0-1"]
[WhiteElo "2019"]
[BlackElo "2300"]
[Annotator "NA RC"]
[PlyCount "84"]
[EventDate "2021.01.17"]
[EventType "blitz"]
[BlackTeam "Nice Alekhine "]
[TimeControl "420+3"]

{- Haroutyun , Barseghyan (2471)} 1. e4 {[%emt 0:00:04]} c5 {[%emt 0:00:06]} 2. Nf3 {[%emt 0:00:02]} e6 {[%emt 0:00:02]} 3. d4 {[%emt 0:00:00]} cxd4 {[%emt 0:00:01]} 4. Nxd4 {[%emt 0:00:00]} Nc6 {[%emt 0:00:03]} 5. c4 {[%emt 0:00:07]} Nf6 {[%emt 0:00:05]} 6. Nc3 {[%emt 0:00:02]} Bb4 {[%emt 0:00:08]} 7. Nxc6 {[%emt 0:00:07]} dxc6 {[%emt 0:00:46]} 8. Qxd8+ {[%emt 0:00:08]} Kxd8 {[%emt 0:00:00]} 9. Bd2 {[%emt 0:00:01]} e5 {[%emt 0:00:10]} 10. O-O-O {[%emt 0:00:02]} Kc7 {[%emt 0:00:24]} 11. f3 {[%emt 0:00:14]} Bc5 {[%emt 0:00:10]} 12. Be2 {[%emt 0:00:45]} Rd8 {[%emt 0:00:12]} 13. Bg5 {[%emt 0:00:18]} Rxd1+ {[%emt 0:00:27]} 14. Rxd1 {[%emt 0:00:04]} Be6 {[%emt 0:00:02]} 15. Kc2 {[%emt 0:00:15]} Bd4 {[%emt 0:00:06]} 16. b3 {[%emt 0:00:08]} Nd7 {[%emt 0:00:06]} 17. Na4 {[%emt 0:00:19]} f6 {[%emt 0:00:08]} 18. Bc1 {[%emt 0:00:15]} Nb6 {[%emt 0:00:08]} 19. Nxb6 {[%emt 0:00:18]} axb6 {[%emt 0:00:00]} 20. a4 {[%emt 0:00:03]} h5 {[%emt 0:00:06]} 21. Bb2 {[%emt 0:00:08]} c5 {[%emt 0:00:04]} 22. Bc1 {[%emt 0:00:20]} g5 {[%emt 0:00:07]} 23. h3 {[%emt 0:00:05]} Rg8 {[%emt 0:00:06]} 24. Bf1 {[%emt 0:00:26]} g4 {[%emt 0:00:10]} 25. f4 {[%emt 0:00:05]} gxh3 {[%emt 0:00:06]} 26. gxh3 {[%emt 0:00:01]} Rg3 {[%emt 0:00:18]} 27. Rd3 {[%emt 0:00:14]} Rg1 {[%emt 0:00:03]} 28. Rf3 {[%emt 0:00:05]} Bg4 {[%emt 0:01:17]} 29. hxg4 {[%emt 0:02:19]} hxg4 {[%emt 0:00:00]} 30. Rd3 {[%emt 0:00:13]} Rxf1 {[%emt 0:00:03]} 31. fxe5 {[%emt 0:00:01]} Bxe5 {[%emt 0:00:14]} 32. Be3 {[%emt 0:00:03]} g3 {[%emt 0:00:04]} 33. Rd2 {[%emt 0:00:01]} Rf3 {[%emt 0:00:13]} 34. Re2 {[%emt 0:00:20]} Kd6 {[%emt 0:00:16]} 35. Kd2 {[%emt 0:00:11]} Bd4 {[%emt 0:00:04]} 36. Bh6 {[%emt 0:00:33]} Ke5 {[%emt 0:00:11]} 37. Rg2 {[%emt 0:00:12]} Rf2+ {[%emt 0:00:13]} 38. Rxf2 {[%emt 0:00:02]} Bxf2 {[%emt 0:00:00]} 39. Ke2 {[%emt 0:00:02]} Kxe4 {[%emt 0:00:02]} 40. Bg7 {[%emt 0:00:22]} f5 {[%emt 0:00:03]} 41. Kf1 {[%emt 0:00:06]} f4 {[%emt 0:00:03]} 42. Bh6 {[%emt 0:00:05]} f3 {[%emt 0:00:07]} 0-1

[Event "TOP 16 - Final A"]
[Site "TOP16-Final-A"]
[Date "2021.01.17"]
[Round "10"]
[White "Amiralfio"]
[Black "Pastouche06"]
[Result "0-1"]
[WhiteElo "1883"]
[BlackElo "2197"]
[Annotator "NA RC"]
[PlyCount "68"]
[EventDate "2021.01.17"]
[EventType "blitz"]
[TimeControl "420+3"]

1. d4 {[%emt 0:00:03]} d5 {[%emt 0:00:05]} 2. Bf4 {[%emt 0:00:01]} c5 {[%emt 0:00:03]} 3. e3 {[%emt 0:00:01]} Nc6 {[%emt 0:00:01]} 4. Nc3 {[%emt 0:00:01]} cxd4 {[%emt 0:00:06]} 5. exd4 {[%emt 0:00:00]} Bf5 {[%emt 0:00:10]} 6. Nf3 {[%emt 0:00:09]} e6 {[%emt 0:00:04]} 7. Ne5 {[%emt 0:00:01]} Bd6 {[%emt 0:00:28]} 8. g4 {[%emt 0:00:18]} Bg6 {[%emt 0:00:01]} 9. h4 {[%emt 0:00:05]} Bxe5 {[%emt 0:00:15]} 10. dxe5 {[%emt 0:00:03]} h5 {[%emt 0:00:08]} 11. Nb5 {[%emt 0:00:05]} Nge7 {[%emt 0:00:32]} 12. Nd6+ {[%emt 0:00:02]} Kf8 {[%emt 0:00:03]} 13. Be2 {[%emt 0:00:33]} hxg4 {[%emt 0:00:08]} 14. Bxg4 {[%emt 0:00:06]} Qb6 {[%emt 0:00:13]} 15. h5 {[%emt 0:00:58]} Qb4+ {[%emt 0:00:38]} 16. Qd2 {[%emt 0:00:03]} Qxb2 {[%emt 0:00:09]} 17. O-O {[%emt 0:00:41]} Bxh5 {[%emt 0:00:36]} 18. Bxh5 {[%emt 0:00:04]} Rxh5 {[%emt 0:00:00]} 19. Kg2 {[%emt 0:00:53]} Ng6 {[%emt 0:00:20]} 20. Rh1 {[%emt 0:00:10]} Rxh1 {[%emt 0:00:18]} 21. Rxh1 {[%emt 0:00:00]} Ncxe5 {[%emt 0:00:03]} 22. Bg3 {[%emt 0:00:38]} f6 {[%emt 0:00:25]} 23. f4 {[%emt 0:00:20]} Ng4 {[%emt 0:00:27]} 24. f5 {[%emt 0:00:42]} exf5 {[%emt 0:00:19]} 25. Nxf5 {[%emt 0:00:01]} N4e5 {[%emt 0:00:23]} 26. Bxe5 {[%emt 0:01:06]} Qxe5 {[%emt 0:00:07]} 27. Ng3 {[%emt 0:00:12]} Re8 {[%emt 0:00:08]} 28. Rd1 {[%emt 0:00:15]} Nf4+ {[%emt 0:00:07]} 29. Kf3 {[%emt 0:00:02]} Nh5 {[%emt 0:00:12]} 30. Nxh5 {[%emt 0:00:39]} Qxh5+ {[%emt 0:00:00]} 31. Kf2 {[%emt 0:00:01]} Re5 {[%emt 0:00:33]} 32. Qb4+ {[%emt 0:00:18]} Kg8 {[%emt 0:00:03]} 33. Rd3 {[%emt 0:00:04]} Qe2+ {[%emt 0:00:08]} 34. Kg1 {[%emt 0:00:01]} Rg5+ {[%emt 0:00:02] Amiralfio resigns} 0-1

[Event "TOP 16 - Final A"]
[Site "TOP16-Final-A"]
[Date "2021.01.17"]
[Round "11"]
[White "Adrien Demuth"]
[Black "Tigran1984"]
[Result "1/2-1/2"]
[WhiteElo "2362"]
[BlackElo "2715"]
[Annotator "NA RC"]
[PlyCount "165"]
[EventDate "2021.01.17"]
[EventType "blitz"]
[TimeControl "420+3"]

1. f4 {[%emt 0:00:03]} g6 {[%emt 0:00:04]} 2. Nf3 {[%emt 0:00:01]} Bg7 {[%emt 0:00:01]} 3. g3 {[%emt 0:00:01]} c6 {[%emt 0:00:01]} 4. Bg2 {[%emt 0:00:01]} Qb6 {[%emt 0:00:00]} 5. Nc3 {[%emt 0:00:26]} d5 {[%emt 0:00:04]} 6. e3 {[%emt 0:00:01]} Nh6 {[%emt 0:00:13]} 7. O-O {[%emt 0:00:02]} O-O {[%emt 0:00:01]} 8. b3 {[%emt 0:00:07]} Nd7 {[%emt 0:00:13]} 9. Bb2 {[%emt 0:00:02]} Qc7 {[%emt 0:00:42]} 10. d3 {[%emt 0:00:33]} e5 {[%emt 0:00:11]} 11. Qd2 {[%emt 0:00:02]} d4 {[%emt 0:00:33]} 12. exd4 {[%emt 0:00:22]} exd4 {[%emt 0:00:01]} 13. Ne4 {[%emt 0:00:18]} c5 {[%emt 0:00:13]} 14. b4 {[%emt 0:01:23]} Nf5 {[%emt 0:00:13]} 15. c3 {[%emt 0:00:03]} Ne3 {[%emt 0:01:16]} 16. Rfc1 {[%emt 0:00:03]} Nxg2 {[%emt 0:00:07]} 17. Kxg2 {[%emt 0:00:00]} cxb4 {[%emt 0:00:10]} 18. cxb4 {[%emt 0:00:13]} Qb6 {[%emt 0:00:01]} 19. a3 {[%emt 0:00:07]} Rd8 {[%emt 0:00:04]} 20. Rc4 {[%emt 0:00:11]} Nf8 {[%emt 0:00:01] Adrien Demuth propose la nulle} 21. Qf2 {[%emt 0:00:14]} Ne6 {[%emt 0:01:37]} 22. Rac1 {[%emt 0:00:14]} Bd7 {[%emt 0:00:09]} 23. Nc5 {[%emt 0:00:58]} Nxc5 {[%emt 0:00:23]} 24. Rxc5 {[%emt 0:00:00]} Bc6 {[%emt 0:00:02]} 25. Kg1 {[%emt 0:00:05]} a5 {[%emt 0:00:22]} 26. Bxd4 {[%emt 0:01:02]} Bxf3 {[%emt 0:00:02]} 27. Bxg7 {[%emt 0:00:01]} Kxg7 {[%emt 0:00:02]} 28. Qxf3 {[%emt 0:00:01]} axb4 {[%emt 0:00:01]} 29. axb4 {[%emt 0:00:04]} Qxb4 {[%emt 0:00:05]} 30. Rc7 {[%emt 0:00:06]} Ra2 {[%emt 0:00:23]} 31. f5 {[%emt 0:00:28]} Qd4+ {[%emt 0:00:17]} 32. Kf1 {[%emt 0:00:02]} Qxd3+ {[%emt 0:00:13]} 33. Qxd3 {[%emt 0:00:00]} Rxd3 {[%emt 0:00:01]} 34. fxg6 {[%emt 0:00:02]} hxg6 {[%emt 0:00:00]} 35. R1c2 {[%emt 0:00:16]} Rxc2 {[%emt 0:00:27]} 36. Rxc2 {[%emt 0:00:00]} b5 {[%emt 0:00:01]} 37. Rc7 {[%emt 0:00:15]} Rb3 {[%emt 0:00:15]} 38. Kg2 {[%emt 0:00:03]} g5 {[%emt 0:00:06]} 39. Kh3 {[%emt 0:00:27]} Kg6 {[%emt 0:00:03]} 40. Rc6+ {[%emt 0:00:04]} f6 {[%emt 0:00:00]} 41. Rb6 {[%emt 0:00:01]} Kf5 {[%emt 0:00:03]} 42. Rc6 {[%emt 0:00:16]} Rb2 {[%emt 0:00:05]} 43. Rc5+ {[%emt 0:00:01]} Kg6 {[%emt 0:00:01]} 44. Rc6 {[%emt 0:00:02]} b4 {[%emt 0:00:12]} 45. Rb6 {[%emt 0:00:01]} b3 {[%emt 0:00:04]} 46. Rb5 {[%emt 0:00:02]} Rb1 {[%emt 0:00:02]} 47. Kg4 {[%emt 0:00:07]} b2 {[%emt 0:00:07]} 48. Rb6 {[%emt 0:00:03]} Kg7 {[%emt 0:00:07]} 49. Kh5 {[%emt 0:00:11]} Kf7 {[%emt 0:00:01]} 50. Rb7+ {[%emt 0:00:03]} Ke6 {[%emt 0:00:03]} 51. Kg6 {[%emt 0:00:00]} g4 {[%emt 0:00:01]} 52. Rb5 {[%emt 0:00:06]} f5 {[%emt 0:00:02]} 53. Kg5 {[%emt 0:00:01]} Kd6 {[%emt 0:00:03]} 54. Rb3 {[%emt 0:00:12]} Kc5 {[%emt 0:00:01]} 55. Rb8 {[%emt 0:00:01]} Kd4 {[%emt 0:00:01]} 56. Rb3 {[%emt 0:00:03]} Ke4 {[%emt 0:00:01]} 57. Rb5 {[%emt 0:00:07]} Kd3 {[%emt 0:00:01]} 58. Rb7 {[%emt 0:00:03]} Kd4 {[%emt 0:00:02]} 59. Rb8 {[%emt 0:00:02]} Kc5 {[%emt 0:00:01]} 60. Rb7 {[%emt 0:00:02]} Kc6 {[%emt 0:00:00]} 61. Rb8 {[%emt 0:00:01]} Kc7 {[%emt 0:00:00]} 62. Rb3 {[%emt 0:00:01]} Kd7 {[%emt 0:00:01]} 63. Rb4 {[%emt 0:00:01]} Ke6 {[%emt 0:00:01]} 64. Rb5 {[%emt 0:00:01]} Ke7 {[%emt 0:00:01]} 65. Rb6 {[%emt 0:00:01]} Kd8 {[%emt 0:00:01]} 66. Rb7 {[%emt 0:00:01]} Kc8 {[%emt 0:00:01]} 67. Rb3 {[%emt 0:00:00]} Kc7 {[%emt 0:00:01]} 68. Rb4 {[%emt 0:00:01]} Kc6 {[%emt 0:00:01]} 69. Rb8 {[%emt 0:00:01]} Kc5 {[%emt 0:00:00]} 70. Rb7 {[%emt 0:00:01]} Kd4 {[%emt 0:00:02]} 71. Rb6 {[%emt 0:00:01]} Ke3 {[%emt 0:00:05]} 72. Rb5 {[%emt 0:00:01]} Ke4 {[%emt 0:00:03]} 73. Rb3 {[%emt 0:00:03]} Kd4 {[%emt 0:00:12]} 74. Rb8 {[%emt 0:00:09]} Kc3 {[%emt 0:00:01]} 75. Rc8+ {[%emt 0:00:01]} Kd2 {[%emt 0:00:02]} 76. Rb8 {[%emt 0:00:03]} Ke2 {[%emt 0:00:01]} 77. Rb5 {[%emt 0:00:04]} Ke3 {[%emt 0:00:03]} 78. Rb8 {[%emt 0:00:05]} Kd4 {[%emt 0:00:26]} 79. Rb7 {[%emt 0:00:03]} Kc3 {[%emt 0:00:01]} 80. Rc7+ {[%emt 0:00:01]} Kd3 {[%emt 0:00:01]} 81. Rb7 {[%emt 0:00:01]} Kc3 {[%emt 0:00:00]} 82. Rc7+ {[%emt 0:00:01]} Kd3 {[%emt 0:00:01]} 83. Rb7 {[%emt 0:00:00] (Lag: Av=0.51s, max=1.0s)} 1/2-1/2

[Event "TOP 16 - Final A"]
[Site "TOP16-Final-A"]
[Date "2021.01.17"]
[Round "11"]
[White "Harut-1998"]
[Black "Nikame"]
[Result "1/2-1/2"]
[WhiteElo "2305"]
[BlackElo "2009"]
[Annotator "NA RC"]
[PlyCount "48"]
[EventDate "2021.01.17"]
[EventType "blitz"]
[WhiteTeam "Nice Alekhine "]
[TimeControl "420+3"]

{Haroutyun , Barseghyan (2471)} 1. d4 {[%emt 0:00:04]} c6 {[%emt 0:00:10]} 2. Nf3 {[%emt 0:00:03]} d5 {[%emt 0:00:04]} 3. Bf4 {[%emt 0:00:05]} Bf5 {[%emt 0:00:14]} 4. e3 {[%emt 0:00:03]} e6 {[%emt 0:00:02]} 5. c4 {[%emt 0:00:05]} Bd6 {[%emt 0:00:34]} 6. Bxd6 {[%emt 0:00:06]} Qxd6 {[%emt 0:00:02]} 7. Qb3 {[%emt 0:00:16]} Nd7 {[%emt 0:01:08]} 8. Nc3 {[%emt 0:00:27]} Qc7 {[%emt 0:00:16]} 9. Be2 {[%emt 0:00:34]} Ngf6 {[%emt 0:00:07]} 10. O-O {[%emt 0:00:21]} O-O {[%emt 0:00:04]} 11. Rfc1 {[%emt 0:00:04]} Qb6 {[%emt 0:00:03]} 12. c5 {[%emt 0:00:22]} Qc7 {[%emt 0:00:05]} 13. Nh4 {[%emt 0:00:11]} Bg4 {[%emt 0:00:18]} 14. Qd1 {[%emt 0:00:26]} Bxe2 {[%emt 0:00:04]} 15. Qxe2 {[%emt 0:00:00]} e5 {[%emt 0:00:17]} 16. Nf5 {[%emt 0:00:10]} exd4 {[%emt 0:00:02]} 17. exd4 {[%emt 0:00:03]} Rfe8 {[%emt 0:00:13]} 18. Qf3 {[%emt 0:00:09]} Ne4 {[%emt 0:00:25]} 19. Re1 {[%emt 0:00:25]} Ndf6 {[%emt 0:00:07]} 20. Re3 {[%emt 0:00:31]} g6 {[%emt 0:00:17]} 21. Ng3 {[%emt 0:00:05]} Nxg3 {[%emt 0:00:15]} 22. hxg3 {[%emt 0:00:07]} Rxe3 {[%emt 0:00:07]} 23. Qxe3 {[%emt 0:00:00]} Re8 {[%emt 0:00:05]} 24. Qf3 {[%emt 0:00:03]} Kg7 {[%emt 0:00:03] Nikame offers a draw} 1/2-1/2

[Event "TOP 16 - Final A"]
[Site "TOP16-Final-A"]
[Date "2021.01.17"]
[Round "11"]
[White "Yvesandre2"]
[Black "Burrito2001"]
[Result "1-0"]
[WhiteElo "2220"]
[BlackElo "2162"]
[Annotator "NA RC"]
[PlyCount "89"]
[EventDate "2021.01.17"]
[EventType "blitz"]
[TimeControl "420+3"]

1. e4 {[%emt 0:00:01]} c5 {[%emt 0:00:02]} 2. Nf3 {[%emt 0:00:01]} d6 {[%emt 0:00:01]} 3. d4 {[%emt 0:00:01]} cxd4 {[%emt 0:00:00]} 4. Nxd4 {[%emt 0:00:01]} Nf6 {[%emt 0:00:00]} 5. Nc3 {[%emt 0:00:01]} a6 {[%emt 0:00:01]} 6. h4 {[%emt 0:00:02]} Nc6 {[%emt 0:00:04]} 7. Be3 {[%emt 0:00:02]} Ng4 {[%emt 0:00:39]} 8. Nxc6 {[%emt 0:00:01]} bxc6 {[%emt 0:00:01]} 9. Bd2 {[%emt 0:00:01]} Qb6 {[%emt 0:00:06]} 10. Qe2 {[%emt 0:00:01]} Nf6 {[%emt 0:00:04]} 11. O-O-O {[%emt 0:00:30]} e5 {[%emt 0:00:09]} 12. f3 {[%emt 0:00:44]} Be6 {[%emt 0:00:38]} 13. g4 {[%emt 0:00:30]} Be7 {[%emt 0:00:07]} 14. h5 {[%emt 0:00:27]} Nd7 {[%emt 0:00:07]} 15. g5 {[%emt 0:00:07]} f5 {[%emt 0:00:28]} 16. gxf6 {[%emt 0:00:40]} Nxf6 {[%emt 0:00:06]} 17. Bh3 {[%emt 0:00:01]} Bf7 {[%emt 0:00:34]} 18. h6 {[%emt 0:00:12]} g6 {[%emt 0:00:04]} 19. f4 {[%emt 0:00:39]} Rb8 {[%emt 0:00:23]} 20. b3 {[%emt 0:00:04]} exf4 {[%emt 0:01:00]} 21. Bxf4 {[%emt 0:01:19]} Qc5 {[%emt 0:00:09]} 22. Rd3 {[%emt 0:00:53]} Nh5 {[%emt 0:00:39]} 23. Be3 {[%emt 0:00:21]} Bg5 {[%emt 0:00:04]} 24. e5 {[%emt 0:00:38]} Nf4 {[%emt 0:01:18]} 25. Bxc5 {[%emt 0:00:13]} Nxe2+ {[%emt 0:00:13]} 26. Kb2 {[%emt 0:00:01]} dxc5 {[%emt 0:00:40]} 27. Nxe2 {[%emt 0:00:07]} Bd5 {[%emt 0:00:05]} 28. Rhd1 {[%emt 0:00:35]} Bxh6 {[%emt 0:00:15]} 29. Nc3 {[%emt 0:00:01]} Bg7 {[%emt 0:00:15]} 30. Nxd5 {[%emt 0:00:02]} cxd5 {[%emt 0:00:00]} 31. Rxd5 {[%emt 0:00:01]} O-O {[%emt 0:00:01]} 32. Rxc5 {[%emt 0:00:11]} Rfe8 {[%emt 0:00:03]} 33. Rdd5 {[%emt 0:00:08]} Rb5 {[%emt 0:00:15]} 34. Rxb5 {[%emt 0:00:01]} axb5 {[%emt 0:00:00]} 35. Rxb5 {[%emt 0:00:01]} Rxe5 {[%emt 0:00:10]} 36. Rxe5 {[%emt 0:00:02]} Bxe5+ {[%emt 0:00:00]} 37. c3 {[%emt 0:00:00]} h5 {[%emt 0:00:01]} 38. a4 {[%emt 0:00:05]} g5 {[%emt 0:00:01]} 39. a5 {[%emt 0:00:08]} g4 {[%emt 0:00:01]} 40. Bg2 {[%emt 0:00:01]} h4 {[%emt 0:00:00]} 41. b4 {[%emt 0:00:02]} h3 {[%emt 0:00:06]} 42. Bf1 {[%emt 0:00:01]} Bf4 {[%emt 0:00:05]} 43. c4 {[%emt 0:00:04]} Bd2 {[%emt 0:00:03]} 44. a6 {[%emt 0:00:03]} g3 {[%emt 0:00:04]} 45. Bxh3 {[%emt 0:00:02] Burrito2001 abandonne (Lag: Av=1.06s, max=1.9s)} 1-0

[Event "TOP 16 - Final A"]
[Site "TOP16-Final-A"]
[Date "2021.01.17"]
[Round "11"]
[White "Pastouche06"]
[Black "jncool68"]
[Result "1-0"]
[WhiteElo "2202"]
[BlackElo "2244"]
[Annotator "NA RC"]
[PlyCount "88"]
[EventDate "2021.01.17"]
[EventType "blitz"]
[TimeControl "420+3"]

1. d4 {[%emt 0:00:04]} Nf6 {[%emt 0:00:01]} 2. c4 {[%emt 0:00:02]} e6 {[%emt 0:00:01]} 3. Nc3 {[%emt 0:00:01]} Bb4 {[%emt 0:00:00]} 4. e3 {[%emt 0:00:04]} O-O {[%emt 0:00:02]} 5. Nge2 {[%emt 0:00:05]} d5 {[%emt 0:00:06]} 6. a3 {[%emt 0:00:04]} Be7 {[%emt 0:00:01]} 7. cxd5 {[%emt 0:00:04]} exd5 {[%emt 0:00:01]} 8. Nf4 {[%emt 0:00:05]} c6 {[%emt 0:00:01]} 9. Bd3 {[%emt 0:00:03]} Na6 {[%emt 0:00:01]} 10. O-O {[%emt 0:00:05]} Nc7 {[%emt 0:00:02]} 11. f3 {[%emt 0:00:18]} Bd6 {[%emt 0:00:07]} 12. Bd2 {[%emt 0:00:34]} Re8 {[%emt 0:00:02]} 13. Kh1 {[%emt 0:00:31]} Bxf4 {[%emt 0:00:09]} 14. exf4 {[%emt 0:00:02]} a6 {[%emt 0:00:02]} 15. f5 {[%emt 0:00:13]} Nb5 {[%emt 0:00:05]} 16. Nxb5 {[%emt 0:00:20]} axb5 {[%emt 0:00:00]} 17. g4 {[%emt 0:00:10]} Ra4 {[%emt 0:00:02]} 18. Bc3 {[%emt 0:00:10]} Qc7 {[%emt 0:00:01]} 19. Qd2 {[%emt 0:00:07]} Bd7 {[%emt 0:00:01]} 20. Rae1 {[%emt 0:00:07]} Raa8 {[%emt 0:00:03]} 21. Rxe8+ {[%emt 0:00:16]} Rxe8 {[%emt 0:00:02]} 22. Re1 {[%emt 0:00:00]} Rxe1+ {[%emt 0:01:31]} 23. Qxe1 {[%emt 0:00:00]} h6 {[%emt 0:00:00]} 24. Qe5 {[%emt 0:00:21]} Ne8 {[%emt 0:00:16] jncool68 propose la nulle} 25. Bb4 {[%emt 0:00:26]} Qxe5 {[%emt 0:00:39]} 26. dxe5 {[%emt 0:00:00]} b6 {[%emt 0:00:00]} 27. Be7 {[%emt 0:00:34]} c5 {[%emt 0:00:01]} 28. Bd8 {[%emt 0:00:08]} c4 {[%emt 0:00:03]} 29. Bc2 {[%emt 0:00:05]} d4 {[%emt 0:00:01]} 30. Bxb6 {[%emt 0:00:06]} d3 {[%emt 0:00:01]} 31. Bd1 {[%emt 0:00:01]} g6 {[%emt 0:00:04]} 32. f6 {[%emt 0:00:20]} g5 {[%emt 0:00:02]} 33. Kg2 {[%emt 0:00:06]} Kh7 {[%emt 0:00:01]} 34. Kf2 {[%emt 0:00:09]} Kg6 {[%emt 0:00:00]} 35. Ke3 {[%emt 0:00:02]} h5 {[%emt 0:00:01]} 36. h3 {[%emt 0:00:03]} hxg4 {[%emt 0:00:01]} 37. fxg4 {[%emt 0:00:10]} Nxf6 {[%emt 0:00:07]} 38. exf6 {[%emt 0:00:03]} Kxf6 {[%emt 0:00:00]} 39. Bf3 {[%emt 0:00:07]} Ke6 {[%emt 0:00:02]} 40. Ba5 {[%emt 0:00:12]} Kd6 {[%emt 0:00:05]} 41. Kd4 {[%emt 0:00:16]} f5 {[%emt 0:00:01]} 42. Bb4+ {[%emt 0:00:07]} Kc7 {[%emt 0:00:01]} 43. gxf5 {[%emt 0:00:08]} Bxf5 {[%emt 0:00:01]} 44. Bg4 {[%emt 0:00:01]} Bg6 {[%emt 0:00:01] jncool68 abandonne (Lag: Av=0.99s, max=2.8s)} 1-0

[Event "TOP 16 - Final A"]
[Site "TOP16-Final-A"]
[Date "2021.01.17"]
[Round "11"]
[White "Pierre35"]
[Black "Bagheri amir"]
[Result "1-0"]
[WhiteElo "2133"]
[BlackElo "2177"]
[Annotator "NA RC"]
[PlyCount "67"]
[EventDate "2021.01.17"]
[EventType "blitz"]
[BlackTeam "monaco"]
[TimeControl "420+3"]

{- Bagheri, Amir} 1. e4 {[%emt 0:00:04]} c6 {[%emt 0:00:01]} 2. Nf3 {[%emt 0:00:02]} d5 {[%emt 0:00:03]} 3. Nc3 {[%emt 0:00:03]} dxe4 {[%emt 0:00:07]} 4. Nxe4 {[%emt 0:00:02]} Nf6 {[%emt 0:00:01]} 5. Qe2 {[%emt 0:00:02]} Bg4 {[%emt 0:00:49]} 6. Nxf6+ {[%emt 0:00:08]} gxf6 {[%emt 0:00:03]} 7. h3 {[%emt 0:00:07]} Bh5 {[%emt 0:00:12]} 8. g3 {[%emt 0:00:05]} Nd7 {[%emt 0:00:22]} 9. d4 {[%emt 0:00:40]} e6 {[%emt 0:01:00]} 10. Bg2 {[%emt 0:00:06]} Qa5+ {[%emt 0:00:50]} 11. c3 {[%emt 0:00:19]} Qb5 {[%emt 0:00:09]} 12. Qxb5 {[%emt 0:00:59]} cxb5 {[%emt 0:00:02]} 13. O-O {[%emt 0:00:06]} Nb6 {[%emt 0:00:30]} 14. Re1 {[%emt 0:01:31]} O-O-O {[%emt 0:00:15]} 15. Nd2 {[%emt 0:00:06]} f5 {[%emt 0:00:12]} 16. Nb3 {[%emt 0:00:25]} Bd6 {[%emt 0:00:07]} 17. Nc5 {[%emt 0:00:10]} Bxc5 {[%emt 0:00:27]} 18. dxc5 {[%emt 0:00:00]} Nd5 {[%emt 0:00:45]} 19. a4 {[%emt 0:00:07]} b4 {[%emt 0:00:36]} 20. c4 {[%emt 0:00:53]} Ne7 {[%emt 0:00:17]} 21. a5 {[%emt 0:00:18]} a6 {[%emt 0:00:08]} 22. Ra4 {[%emt 0:00:07]} Nc6 {[%emt 0:00:08]} 23. Bxc6 {[%emt 0:00:52]} bxc6 {[%emt 0:00:02]} 24. Rxb4 {[%emt 0:00:00]} f6 {[%emt 0:00:41]} 25. Bh6 {[%emt 0:00:38]} e5 {[%emt 0:00:14]} 26. Bg7 {[%emt 0:00:07]} Rhe8 {[%emt 0:00:06]} 27. Bxf6 {[%emt 0:00:02]} Rd1 {[%emt 0:00:03]} 28. Rxd1 {[%emt 0:00:08]} Bxd1 {[%emt 0:00:00]} 29. Rb6 {[%emt 0:00:11]} Bf3 {[%emt 0:00:03]} 30. Rxa6 {[%emt 0:00:03]} Kd7 {[%emt 0:00:03]} 31. Ra7+ {[%emt 0:00:03]} Ke6 {[%emt 0:00:02]} 32. Re7+ {[%emt 0:00:01]} Rxe7 {[%emt 0:00:05]} 33. Bxe7 {[%emt 0:00:00]} Kxe7 {[%emt 0:00:02]} 34. a6 {[%emt 0:00:02] Bagheri amir resigns} 1-0

[Event "TOP 16 - Final A"]
[Site "TOP16-Final-A"]
[Date "2021.01.17"]
[Round "11"]
[White "SebyFischer57"]
[Black "Amiralfio"]
[Result "0-1"]
[WhiteElo "2033"]
[BlackElo "1878"]
[Annotator "NA RC"]
[PlyCount "120"]
[EventDate "2021.01.17"]
[EventType "blitz"]
[TimeControl "420+3"]

1. c4 {[%emt 0:00:02]} f5 {[%emt 0:00:02]} 2. g3 {[%emt 0:00:05]} Nf6 {[%emt 0:00:01]} 3. Bg2 {[%emt 0:00:01]} e6 {[%emt 0:00:00]} 4. Nc3 {[%emt 0:00:09]} Be7 {[%emt 0:00:01]} 5. d3 {[%emt 0:00:08]} O-O {[%emt 0:00:04]} 6. e4 {[%emt 0:00:09]} fxe4 {[%emt 0:00:02]} 7. dxe4 {[%emt 0:00:02]} Nc6 {[%emt 0:00:06]} 8. Nge2 {[%emt 0:00:46]} Bc5 {[%emt 0:00:11]} 9. Na4 {[%emt 0:00:51]} Bb4+ {[%emt 0:00:18]} 10. Bd2 {[%emt 0:00:15]} Qe7 {[%emt 0:00:50]} 11. O-O {[%emt 0:00:06]} Bxd2 {[%emt 0:00:10]} 12. Qxd2 {[%emt 0:00:00]} d6 {[%emt 0:00:05]} 13. f4 {[%emt 0:00:23]} e5 {[%emt 0:00:06]} 14. f5 {[%emt 0:00:19]} Nd7 {[%emt 0:00:24]} 15. Nac3 {[%emt 0:00:11]} a5 {[%emt 0:00:26]} 16. Nd5 {[%emt 0:00:18]} Qd8 {[%emt 0:00:01]} 17. g4 {[%emt 0:00:27]} h6 {[%emt 0:00:06]} 18. b3 {[%emt 0:00:18]} Nc5 {[%emt 0:00:03]} 19. Qe3 {[%emt 0:00:16]} Nb4 {[%emt 0:00:13]} 20. Rad1 {[%emt 0:00:51]} Nxd5 {[%emt 0:00:25]} 21. Rxd5 {[%emt 0:00:26]} Qg5 {[%emt 0:00:01]} 22. Qg3 {[%emt 0:00:18]} Bd7 {[%emt 0:00:13]} 23. h4 {[%emt 0:00:08]} Qe7 {[%emt 0:00:01]} 24. Nc3 {[%emt 0:00:03]} Bc6 {[%emt 0:00:07]} 25. Rd2 {[%emt 0:00:02]} Kf7 {[%emt 0:00:17]} 26. g5 {[%emt 0:00:06]} hxg5 {[%emt 0:00:03]} 27. hxg5 {[%emt 0:00:00]} Ke8 {[%emt 0:00:04]} 28. Rdf2 {[%emt 0:00:22]} Kd7 {[%emt 0:00:18]} 29. Bh3 {[%emt 0:00:43]} Kd8 {[%emt 0:00:47]} 30. f6 {[%emt 0:00:01]} gxf6 {[%emt 0:00:00]} 31. Rxf6 {[%emt 0:00:01]} Rxf6 {[%emt 0:00:05]} 32. gxf6 {[%emt 0:00:03]} Qf7 {[%emt 0:00:02]} 33. Qg7 {[%emt 0:00:19]} Be8 {[%emt 0:00:04]} 34. Bf5 {[%emt 0:00:21]} c6 {[%emt 0:00:11]} 35. Rf2 {[%emt 0:00:09]} Nd7 {[%emt 0:00:43]} 36. Bxd7 {[%emt 0:00:04]} Kxd7 {[%emt 0:00:00]} 37. Rh2 {[%emt 0:00:03]} Qxg7+ {[%emt 0:00:12]} 38. fxg7 {[%emt 0:00:00]} Bf7 {[%emt 0:00:01]} 39. Rg2 {[%emt 0:00:10]} Rg8 {[%emt 0:00:07]} 40. Kf2 {[%emt 0:00:00]} Ke7 {[%emt 0:00:01]} 41. Ke3 {[%emt 0:00:01]} Kf6 {[%emt 0:00:01]} 42. Na4 {[%emt 0:00:07]} Rxg7 {[%emt 0:00:03]} 43. Rxg7 {[%emt 0:00:03]} Kxg7 {[%emt 0:00:00]} 44. Nb6 {[%emt 0:00:04]} Kf6 {[%emt 0:00:09]} 45. Nc8 {[%emt 0:00:02]} Ke6 {[%emt 0:00:06]} 46. Nb6 {[%emt 0:00:03]} Bh5 {[%emt 0:00:10]} 47. Na4 {[%emt 0:00:02]} Kd7 {[%emt 0:00:09]} 48. Nc3 {[%emt 0:00:01]} Kc7 {[%emt 0:00:06]} 49. a3 {[%emt 0:00:02]} Bf7 {[%emt 0:00:05]} 50. Kd3 {[%emt 0:00:03]} Kb6 {[%emt 0:00:33]} 51. b4 {[%emt 0:00:01]} axb4 {[%emt 0:00:00]} 52. axb4 {[%emt 0:00:00]} Be6 {[%emt 0:00:22]} 53. Na4+ {[%emt 0:00:02]} Kc7 {[%emt 0:00:05]} 54. Nc3 {[%emt 0:00:06]} Kd7 {[%emt 0:00:01]} 55. Na4 {[%emt 0:00:07]} Ke7 {[%emt 0:00:02]} 56. Nc3 {[%emt 0:00:06]} Kd7 {[%emt 0:00:02]} 57. Na4 {[%emt 0:00:01]} Bxc4+ {[%emt 0:00:12]} 58. Kxc4 {[%emt 0:00:03]} b5+ {[%emt 0:00:01]} 59. Kb3 {[%emt 0:00:02]} bxa4+ {[%emt 0:00:01]} 60. Kxa4 {[%emt 0:00:00]} d5 {[%emt 0:00:00] TimeW} 0-1